[Event "Championnat du monde jeunes U10"]
[Date "2024.11.19"]
[White "Larionov, Serghei"]
[Black "Youn, Laeho"]
[WhiteElo "1720"]
[BlackElo "1520"]
[Round "5.1"]
[Result "1-0"]
[TimeControl "5400+30"]

1. d4 {[%clk 1:30:57]} 1... e6 {[%clk 1:30:53]} 2. c4 d5 {[%clk 1:31:21]} 3. Nc3
{[%clk 1:30:50]} 3... c6 {[%clk 1:31:44]} 4. cxd5 {[%clk 1:28:46]} 4... exd5
{[%clk 1:31:57]} 5. Bf4 {[%clk 1:27:13]} 5... Bf5 {[%clk 1:31:51]} 6. e3 {[%clk
1:24:57]} 6... Nf6 {[%clk 1:31:07]} 7. Bd3 {[%clk 1:22:59]} 7... Bg6 {[%clk
1:30:09]} 8. Bxg6 {[%clk 1:18:52]} 8... hxg6 {[%clk 1:29:01]} 9. Nf3 {[%clk
1:14:02]} 9... Bd6 {[%clk 1:28:32]} 10. Bxd6 {[%clk 1:13:09]} 10... Qxd6 {[%clk
1:28:46]} 11. O-O {[%clk 1:13:08]} 11... Nbd7 {[%clk 1:28:00]} 12. Qb3 {[%clk
1:12:36]} 12... O-O {[%clk 1:28:00]} 13. Qc2 {[%clk 1:09:32]} 13... Rae8 {[%clk
1:27:39]} 14. Na4 {[%clk 1:04:51]} 14... Ne4 {[%clk 1:26:52]} 15. Rfb1 {[%clk
1:02:56]} 15... Ndf6 {[%clk 1:26:04]} 16. Nc5 {[%clk 1:01:43]} 16... Ng4 {[%clk
1:23:27]} 17. Nd3 {[%clk 1:02:03]} 17... Kh7 {[%clk 1:18:56]} 18. h3 {[%clk
1:00:27]} 18... Nh6 {[%clk 1:18:51]} 19. Nf4 {[%clk 0:56:03]} 19... Rh8 {[%clk
1:17:52]} 20. Nd2 {[%clk 0:51:36]} 20... Kg8 {[%clk 1:17:19]} 21. Nxe4 {[%clk
0:50:34]} 21... Rxe4 {[%clk 1:17:07]} 22. Qc5 {[%clk 0:49:59]} 22... Qb8 {[%clk
1:15:48]} 23. h4 {[%clk 0:45:20]} 23... Nf5 {[%clk 1:13:56]} 24. g3 {[%clk
0:44:22]} 24... Nd6 {[%clk 1:12:18]} 25. Nd3 {[%clk 0:39:07]} 25... Nc4 {[%clk
1:11:18]} 26. Nf4 {[%clk 0:37:42]} 26... g5 {[%clk 1:10:47]} 27. hxg5 {[%clk
0:37:04]} 27... Nd2 {[%clk 1:11:07]} 28. Rd1 {[%clk 0:36:38]} 28... Nf3+ {[%clk
1:11:24]} 29. Kg2 {[%clk 0:36:57]} 29... Nxg5 {[%clk 1:11:39]} 30. Rh1 {[%clk
0:37:14]} 30... g6 {[%clk 1:08:21]} 31. Rxh8+ {[%clk 0:35:51]} 31... Kxh8 {[%clk
1:08:32]} 32. Rh1+ {[%clk 0:36:04]} 32... Kg7 {[%clk 1:08:52]} 33. Nd3 {[%clk
0:34:38]} 33... Rg4 {[%clk 1:00:42]} 34. Ne5 {[%clk 0:33:34]} 34... Re4 {[%clk
0:59:53]} 35. Qe7 {[%clk 0:33:51]} 35... Rxe5 {[%clk 0:54:53]} 36. dxe5 {[%clk
0:33:54]} 36... Nh7 {[%clk 0:54:31]} 37. Qh4 {[%clk 0:31:40]} 37... Qg8 {[%clk
0:53:49]} 38. Qd4 {[%clk 0:31:44]} 38... f6 {[%clk 0:53:14]} 39. Qxa7 {[%clk
0:31:28]} 39... Qf7 {[%clk 0:53:08]} 40. Qd4 {[%clk 0:31:20]} 40... Qf8 {[%clk
0:52:17]} 41. Qh4 {[%clk 0:30:06]} 41... Qg8 {[%clk 0:50:20]} 42. Qh6+ {[%clk
0:30:22]} 42... Kh8 {[%clk 0:50:42]} 43. e6 {[%clk 0:30:44]} 43... Qg7 {[%clk
0:49:49]} 44. Qxg7+ Kxg7 {[%clk 0:50:13]} 45. Rxh7+ {[%clk 0:31:21]} 45... Kf8
{[%clk 0:50:32]} 46. Rxb7 {[%clk 0:31:42]} 46... d4 {[%clk 0:50:56]} 47. exd4
{[%clk 0:32:10]} 47... c5 {[%clk 0:51:19]} 48. dxc5 {[%clk 0:32:33]} 48... Ke8
{[%clk 0:51:39]} 49. Rd7 {[%clk 0:32:55]} 49... f5 {[%clk 0:51:59]} 50. c6
{[%clk 0:33:09]} 50... f4 {[%clk 0:52:26]} 51. c7 {[%clk 0:33:22]} 51... f3+
{[%clk 0:52:52]} 52. Kxf3 {[%clk 0:33:46]} 52... g5 {[%clk 0:53:17]} 53. c8=B
{[%clk 0:34:09]} 53... g4+ {[%clk 0:53:25]} 54. Kg2 {[%clk 0:34:32]} 54... Kf8
{[%clk 0:53:52]} 55. a4 {[%clk 0:34:57]} 55... Ke8 {[%clk 0:54:17]} 56. a5
{[%clk 0:35:24]} 56... Kf8 {[%clk 0:54:44]} 57. a6 {[%clk 0:35:50]} 57... Ke8
{[%clk 0:55:09]} 58. a7 {[%clk 0:36:18]} 58... Kf8 {[%clk 0:55:35]} 59. a8=N
{[%clk 0:36:44]} 59... Ke8 1-0

[Variant "Standard"]
[Site "Europe Echecs"]

[Event "Championnat du monde jeunes U10"]
[Date "2024.11.19"]
[White "Schettini Acuna, Massimo Matteo"]
[Black "Kaloh, Edvard"]
[WhiteElo "1703"]
[BlackElo "1506"]
[Round "5.2"]
[Result "1/2-1/2"]
[TimeControl "5400+30"]

1. e4 {[%clk 1:30:56]} 1... c5 {[%clk 1:28:12]} 2. Nf3 {[%clk 1:31:16]} 2... g6
{[%clk 1:28:35]} 3. d4 {[%clk 1:31:37]} 3... cxd4 {[%clk 1:28:59]} 4. Nxd4
{[%clk 1:31:37]} 4... Bg7 {[%clk 1:29:21]} 5. Nc3 {[%clk 1:31:52]} 5... Nc6
{[%clk 1:29:41]} 6. Be3 {[%clk 1:31:49]} 6... Nf6 {[%clk 1:30:00]} 7. f3 {[%clk
1:31:42]} 7... O-O {[%clk 1:30:17]} 8. Qd2 {[%clk 1:31:54]} 8... d5 {[%clk
1:30:12]} 9. Bb5 {[%clk 1:01:43]} 9... Nxd4 {[%clk 1:29:18]} 10. Bxd4 {[%clk
0:54:40]} 10... dxe4 {[%clk 1:29:03]} 11. f4 {[%clk 0:51:07]} 11... Ng4 {[%clk
1:24:17]} 12. Bxg7 {[%clk 0:49:50]} 12... Qxd2+ {[%clk 1:24:01]} 13. Kxd2 {[%clk
0:50:13]} 13... e3+ {[%clk 1:23:56]} 14. Ke2 {[%clk 0:49:39]} 14... Kxg7 {[%clk
1:23:24]} 15. h3 {[%clk 0:49:34]} 15... Nf6 {[%clk 1:22:25]} 16. Kxe3 {[%clk
0:47:22]} 16... a6 {[%clk 1:21:30]} 17. Bd3 {[%clk 0:46:04]} 17... b5 {[%clk
1:21:42]} 18. a3 {[%clk 0:35:57]} 18... Bb7 {[%clk 1:21:55]} 19. Rhg1 {[%clk
0:35:11]} 19... Rfd8 {[%clk 1:18:47]} 20. g4 {[%clk 0:34:10]} 20... Rac8 {[%clk
1:18:32]} 21. Rad1 {[%clk 0:32:34]} 21... Nd5+ {[%clk 1:17:09]} 22. Nxd5 {[%clk
0:32:39]} 22... Rxd5 {[%clk 1:17:10]} 23. c3 {[%clk 0:31:35]} 23... Rcd8 {[%clk
1:16:57]} 24. Be2 {[%clk 0:31:12]} 24... Rxd1 {[%clk 1:16:26]} 25. Rxd1 {[%clk
0:31:35]} 25... Rxd1 {[%clk 1:16:10]} 26. Bxd1 {[%clk 0:32:01]} 26... f5 {[%clk
1:11:31]} 27. a4 {[%clk 0:13:17]} 27... bxa4 {[%clk 1:10:43]} 28. Bxa4 Bg2
{[%clk 1:11:03]} 29. gxf5 {[%clk 0:13:49]} 29... Bxh3 {[%clk 1:11:26]} 30. fxg6
{[%clk 0:14:05]} 30... Kxg6 {[%clk 1:11:43]} 31. c4 {[%clk 0:14:02]} 31... h5
{[%clk 1:12:01]} 32. c5 {[%clk 0:13:56]} 32... h4 {[%clk 1:11:57]} 33. Be8+
{[%clk 0:08:17]} 33... Kf6 {[%clk 1:06:20]} 34. c6 {[%clk 0:05:20]} 34... e5
{[%clk 1:05:51]} 35. fxe5+ {[%clk 0:05:21]} 35... Ke7 {[%clk 1:06:14]} 36. Bh5
{[%clk 0:05:12]} 36... Bc8 {[%clk 1:06:24]} 37. Bf3 {[%clk 0:05:20]} 37... h3
{[%clk 1:06:00]} 38. Bh1 {[%clk 0:05:09]} 38... Ke6 {[%clk 1:04:37]} 39. Kd4
{[%clk 0:05:15]} 39... h2 {[%clk 1:04:20]} 40. b4 {[%clk 0:05:31]} 40... Ke7
{[%clk 1:04:07]} 41. Kc5 {[%clk 0:05:19]} 41... Ke6 {[%clk 1:04:02]} 42. Kb6
{[%clk 0:05:22]} 42... Kxe5 {[%clk 1:03:55]} 43. Kc7 {[%clk 0:05:42]} 43... Be6
{[%clk 1:03:19]} 44. Kb6 {[%clk 0:05:04]} 44... Bc8 {[%clk 1:03:38]} 45. c7
{[%clk 0:04:46]} 45... Kd6 {[%clk 1:03:41]} 46. Bc6 {[%clk 0:04:36]} 46... Bd7
{[%clk 1:02:07]} 47. Bb7 {[%clk 0:03:54]} 47... Bc8 {[%clk 1:02:17]} 48. Bg2
{[%clk 0:03:41]} 48... Kd7 {[%clk 1:01:52]} 49. Bh1 {[%clk 0:03:25]} 49... Kd6
{[%clk 1:02:06]} 50. Be4 {[%clk 0:03:23]} 50... Kd7 {[%clk 1:01:39]} 1/2-1/2

[Variant "Standard"]
[Site "Europe Echecs"]

[Event "Championnat du monde jeunes U10"]
[Date "2024.11.19"]
[White "Button-Rabl, Jiban"]
[Black "Annapureddy, Rheyansh Reddy"]
[WhiteElo "1435"]
[BlackElo "2122"]
[Round "5.3"]
[Result "0-1"]
[TimeControl "5400+30"]

1. e4 {[%clk 1:30:58]} 1... c5 {[%clk 1:30:20]} 2. Nf3 {[%clk 1:31:19]} 2... Nc6
{[%clk 1:30:46]} 3. d4 {[%clk 1:31:34]} 3... cxd4 {[%clk 1:31:11]} 4. Nxd4
{[%clk 1:31:53]} 4... g6 {[%clk 1:31:34]} 5. c4 {[%clk 1:31:50]} 5... Bg7 {[%clk
1:31:57]} 6. Be3 {[%clk 1:31:54]} 6... Qb6 {[%clk 1:32:17]} 7. Nb3 {[%clk
1:31:54]} 7... Qd8 {[%clk 1:32:42]} 8. Qd2 {[%clk 1:31:47]} 8... Nf6 {[%clk
1:33:06]} 9. Nc3 {[%clk 1:31:20]} 9... Ng4 {[%clk 1:33:19]} 10. Bf4 {[%clk
1:29:54]} 10... d6 {[%clk 1:33:12]} 11. f3 {[%clk 1:27:08]} 11... Nge5 {[%clk
1:32:39]} 12. Be2 {[%clk 1:23:17]} 12... a5 {[%clk 1:32:17]} 13. Be3 {[%clk
1:19:46]} 13... a4 {[%clk 1:30:12]} 14. Nd4 {[%clk 1:17:36]} 14... Na5 {[%clk
1:28:22]} 15. b3 {[%clk 1:11:43]} 15... axb3 {[%clk 1:28:15]} 16. axb3 {[%clk
1:11:42]} 16... Naxc4 {[%clk 1:27:28]} 17. Qc1 {[%clk 1:05:26]} 17... Rxa1
{[%clk 1:27:40]} 18. Qxa1 {[%clk 1:05:43]} 18... Nxe3 {[%clk 1:28:02]} 19. Kf2
{[%clk 1:05:41]} 19... Qb6 {[%clk 1:21:37]} 20. Qa8 {[%clk 1:01:03]} 20... O-O
{[%clk 1:21:40]} 21. Ncb5 {[%clk 1:00:45]} 21... Nc2 {[%clk 1:21:51]} 22. Rd1
{[%clk 0:59:16]} 22... Nxd4 {[%clk 1:22:14]} 23. Nxd4 {[%clk 0:59:28]} 23... Nc6
{[%clk 1:22:38]} 24. Qa4 {[%clk 0:57:02]} 24... Nxd4 {[%clk 1:22:33]} 25. Kf1
{[%clk 0:55:10]} 25... Nc2 {[%clk 1:22:05]} 26. Rd3 {[%clk 0:54:59]} 26... Ne3+
{[%clk 1:22:25]} 27. Kf2 {[%clk 0:54:48]} 27... Ng4+ {[%clk 1:22:42]} 28. Ke1
{[%clk 0:54:47]} 28... Qg1+ {[%clk 1:22:59]} 29. Bf1 {[%clk 0:54:13]} 29... Qf2+
{[%clk 1:23:15]} 30. Kd1 {[%clk 0:54:31]} 30... Qxf1+ {[%clk 1:23:39]} 31. Kc2
{[%clk 0:54:33]} 31... Qe2+ {[%clk 1:24:33]} 32. Kc1 {[%clk 0:54:35]} 32... Qb2+
{[%clk 1:24:53]} 33. Kd1 {[%clk 0:54:57]} 33... Nf2+ {[%clk 1:25:18]} 34. Ke1
{[%clk 0:55:18]} 34... Nxd3+ {[%clk 1:25:41]} 35. Kf1 {[%clk 0:55:26]} 35...
Qf2# {[%clk 1:26:02]} 0-1

[Variant "Standard"]
[Site "Europe Echecs"]

[Event "Championnat du monde jeunes U10"]
[Date "2024.11.19"]
[White "Chkhartishvili, Lazare"]
[Black "Yao, Lucas Mason Pin Qian"]
[WhiteElo "1836"]
[BlackElo "1687"]
[Round "5.4"]
[Result "1/2-1/2"]
[TimeControl "5400+30"]

1. e4 {[%clk 1:30:59]} 1... e5 {[%clk 1:30:54]} 2. Nf3 {[%clk 1:31:19]} 2... Nc6
{[%clk 1:31:17]} 3. d4 {[%clk 1:31:43]} 3... exd4 {[%clk 1:31:14]} 4. Bc4 {[%clk
1:32:11]} 4... Be7 {[%clk 1:30:39]} 5. c3 {[%clk 1:32:24]} 5... Nf6 {[%clk
1:28:58]} 6. e5 {[%clk 1:32:05]} 6... Ne4 {[%clk 1:27:42]} 7. Bd5 {[%clk
1:30:23]} 7... Nc5 {[%clk 1:25:10]} 8. cxd4 {[%clk 1:28:31]} 8... Ne6 {[%clk
1:23:00]} 9. O-O {[%clk 1:26:53]} 9... d6 {[%clk 1:20:54]} 10. Be3 {[%clk
1:15:05]} 10... O-O {[%clk 1:13:56]} 11. Nc3 {[%clk 1:04:50]} 11... Nb4 {[%clk
1:10:49]} 12. Bb3 {[%clk 1:00:36]} 12... dxe5 {[%clk 1:04:57]} 13. Nxe5 {[%clk
1:00:04]} 13... c6 {[%clk 1:01:17]} 14. a3 {[%clk 0:56:36]} 14... Nd5 {[%clk
0:59:08]} 15. Nxd5 {[%clk 0:55:46]} 15... cxd5 {[%clk 0:59:26]} 16. Bc2 {[%clk
0:53:24]} 16... Bf6 {[%clk 0:54:06]} 17. f4 {[%clk 0:50:12]} 17... g6 {[%clk
0:52:20]} 18. f5 {[%clk 0:47:35]} 18... Ng7 {[%clk 0:49:50]} 19. Ng4 {[%clk
0:37:27]} 19... Bg5 {[%clk 0:48:16]} 20. Qd2 {[%clk 0:36:59]} 20... Bxe3+ {[%clk
0:46:32]} 21. Qxe3 {[%clk 0:36:26]} 21... gxf5 {[%clk 0:42:23]} 22. Nh6+ {[%clk
0:35:36]} 22... Kh8 {[%clk 0:42:43]} 23. Nxf5 {[%clk 0:33:09]} 23... Bxf5 {[%clk
0:42:11]} 24. Bxf5 {[%clk 0:32:44]} 24... Qh4 {[%clk 0:40:56]} 25. Qf4 {[%clk
0:21:58]} 25... Qxf4 {[%clk 0:38:59]} 26. Rxf4 {[%clk 0:22:04]} 26... Rae8
{[%clk 0:37:59]} 27. Kf2 {[%clk 0:20:31]} 27... Re7 {[%clk 0:37:51]} 28. Re1
{[%clk 0:18:23]} 28... Rfe8 {[%clk 0:37:16]} 29. Rxe7 {[%clk 0:18:05]} 29...
Rxe7 {[%clk 0:37:37]} 30. Bh3 {[%clk 0:15:23]} 30... Kg8 {[%clk 0:36:45]} 31.
Rf3 {[%clk 0:14:15]} 31... Rc7 {[%clk 0:35:50]} 32. Rc3 {[%clk 0:13:11]} 32...
Rxc3 {[%clk 0:36:04]} 33. bxc3 {[%clk 0:13:39]} 33... Ne8 {[%clk 0:36:18]} 34.
Bf5 {[%clk 0:11:57]} 34... Nd6 {[%clk 0:35:19]} 35. Bd3 {[%clk 0:12:25]} 35...
Kg7 {[%clk 0:35:14]} 36. Kf3 {[%clk 0:12:27]} 36... f5 {[%clk 0:34:59]} 37. Kf4
{[%clk 0:11:25]} 37... Kf6 {[%clk 0:35:23]} 38. g4 {[%clk 0:11:26]} 38... fxg4
{[%clk 0:34:17]} 39. Kxg4 {[%clk 0:11:55]} 39... h6 {[%clk 0:34:16]} 40. Kf4
{[%clk 0:10:39]} 40... b5 {[%clk 0:33:31]} 41. Be2 {[%clk 0:07:39]} 41... Nc4
{[%clk 0:33:07]} 42. Bxc4 {[%clk 0:05:47]} 42... bxc4 {[%clk 0:33:28]} 43. a4
{[%clk 0:05:31]} 43... a5 {[%clk 0:33:25]} 44. h3 {[%clk 0:05:33]} 44... Ke6
{[%clk 0:33:40]} 45. h4 {[%clk 0:04:42]} 45... Kf6 {[%clk 0:34:00]} 46. h5
{[%clk 0:05:02]} 46... Ke6 {[%clk 0:34:25]} 1/2-1/2

[Variant "Standard"]
[Site "Europe Echecs"]

[Event "Championnat du monde jeunes U10"]
[Date "2024.11.19"]
[White "Friscic, Jakov"]
[Black "Garcia Tanjala, Marko"]
[WhiteElo "1685"]
[BlackElo "1833"]
[Round "5.5"]
[Result "0-1"]
[TimeControl "5400+30"]

1. d4 {[%clk 1:30:56]} 1... Nf6 {[%clk 1:30:41]} 2. c4 {[%clk 1:31:22]} 2... e6
{[%clk 1:30:52]} 3. Nc3 {[%clk 1:31:45]} 3... Bb4 {[%clk 1:31:15]} 4. Qc2 {[%clk
1:32:05]} 4... O-O {[%clk 1:31:08]} 5. e4 {[%clk 1:32:28]} 5... c5 {[%clk
1:31:32]} 6. d5 {[%clk 1:31:07]} 6... exd5 {[%clk 1:31:47]} 7. exd5 {[%clk
1:30:34]} 7... Re8+ {[%clk 1:30:44]} 8. Be2 {[%clk 1:27:23]} 8... d6 {[%clk
1:26:27]} 9. h3 {[%clk 1:25:36]} 9... Ne4 {[%clk 1:24:56]} 10. a3 {[%clk
1:05:42]} 10... Bxc3+ {[%clk 1:25:08]} 11. bxc3 {[%clk 1:06:09]} 11... Qf6
{[%clk 1:25:27]} 12. Be3 {[%clk 1:05:00]} 12... Nxc3 {[%clk 1:24:40]} 13. Rc1
{[%clk 1:01:46]} 13... Nxe2 {[%clk 1:20:18]} 14. Nxe2 {[%clk 1:02:00]} 14... Bf5
{[%clk 1:16:55]} 15. Qb3 {[%clk 0:56:53]} 15... b6 {[%clk 1:15:41]} 16. O-O
{[%clk 0:57:10]} 16... Nd7 {[%clk 1:14:17]} 17. Ng3 {[%clk 0:43:09]} 17... Ne5
{[%clk 1:08:07]} 18. Rfd1 {[%clk 0:35:37]} 18... Qg6 {[%clk 1:07:30]} 19. Rc3
{[%clk 0:21:24]} 19... Rad8 {[%clk 1:04:37]} 20. a4 {[%clk 0:20:49]} 20... Bc8
{[%clk 1:03:19]} 21. a5 {[%clk 0:19:27]} 21... Ba6 {[%clk 1:02:55]} 22. Ra1
{[%clk 0:17:14]} 22... Bxc4 {[%clk 1:03:13]} 23. Rxc4 {[%clk 0:17:30]} 23...
Nxc4 {[%clk 1:03:38]} 24. Qxc4 {[%clk 0:17:52]} 24... Rxe3 {[%clk 1:04:02]} 25.
fxe3 {[%clk 0:17:15]} 25... Qxg3 {[%clk 1:04:21]} 26. axb6 {[%clk 0:15:44]}
26... Qxe3+ {[%clk 1:04:45]} 27. Kh1 {[%clk 0:16:04]} 27... axb6 {[%clk
1:04:56]} 28. Qa6 {[%clk 0:16:22]} 28... Qd4 {[%clk 1:04:40]} 29. Qa8 {[%clk
0:12:49]} 29... Rf8 {[%clk 1:02:23]} 30. Ra6 {[%clk 0:12:55]} 30... c4 {[%clk
1:01:14]} 31. Qc6 {[%clk 0:11:15]} 31... c3 {[%clk 0:59:30]} 32. Ra8 {[%clk
0:11:01]} 32... g6 {[%clk 0:57:37]} 33. Rxf8+ {[%clk 0:10:17]} 33... Kxf8 {[%clk
0:58:03]} 34. Qxd6+ {[%clk 0:10:14]} 34... Kg7 {[%clk 0:58:25]} 35. Qc7 {[%clk
0:09:32]} 35... Qc5 {[%clk 0:58:37]} 36. Qe5+ {[%clk 0:07:48]} 36... f6 {[%clk
0:58:51]} 37. Qe1 {[%clk 0:07:59]} 37... c2 {[%clk 0:58:52]} 38. Qc1 {[%clk
0:08:24]} 38... Qc3 {[%clk 0:59:08]} 39. d6 {[%clk 0:08:26]} 39... Qd3 {[%clk
0:59:28]} 40. d7 {[%clk 0:08:36]} 40... Qd1+ {[%clk 0:59:52]} 41. Kh2 {[%clk
0:08:59]} 41... Qxc1 {[%clk 1:00:14]} 42. d8=Q {[%clk 0:09:18]} 42... Qf4+
{[%clk 1:00:36]} 43. g3 {[%clk 0:09:36]} 43... Qf2+ {[%clk 1:01:00]} 44. Kh1
{[%clk 0:10:01]} 44... c1=Q+ 45. Qd1 {[%clk 0:10:25]} 45... Qxd1# {[%clk
1:01:01]} 0-1

[Variant "Standard"]
[Site "Europe Echecs"]

[Event "Championnat du monde jeunes U10"]
[Date "2024.11.19"]
[White "Mariani, Kim Paul"]
[Black "Della Penna, Leonardo"]
[WhiteElo "1814"]
[BlackElo "1675"]
[Round "5.6"]
[Result "1-0"]
[TimeControl "5400+30"]

1. e4 {[%clk 1:30:31]} 1... c5 {[%clk 1:30:43]} 2. Nf3 {[%clk 1:30:30]} 2... d6
{[%clk 1:31:02]} 3. Bb5+ {[%clk 1:30:30]} 3... Bd7 {[%clk 1:31:19]} 4. Bxd7+
{[%clk 1:30:30]} 4... Qxd7 {[%clk 1:31:40]} 5. c4 {[%clk 1:30:43]} 5... Nf6
{[%clk 1:31:50]} 6. Nc3 {[%clk 1:31:00]} 6... g6 {[%clk 1:31:44]} 7. O-O {[%clk
1:31:17]} 7... Nc6 {[%clk 1:31:13]} 8. d4 {[%clk 1:31:17]} 8... cxd4 {[%clk
1:31:18]} 9. Nxd4 {[%clk 1:31:28]} 9... Bg7 {[%clk 1:31:09]} 10. Nde2 {[%clk
1:28:39]} 10... O-O {[%clk 1:29:54]} 11. f3 {[%clk 1:28:47]} 11... Rac8 {[%clk
1:26:33]} 12. Be3 {[%clk 1:26:43]} 12... Rfd8 {[%clk 1:21:08]} 13. Nd4 {[%clk
1:25:42]} 13... Ne5 {[%clk 1:15:49]} 14. b3 {[%clk 1:23:20]} 14... Ne8 {[%clk
1:00:49]} 15. Qe2 {[%clk 1:19:31]} 15... Nc6 {[%clk 1:00:14]} 16. Rfd1 {[%clk
1:18:06]} 16... Nc7 {[%clk 0:56:32]} 17. Rac1 {[%clk 1:16:49]} 17... b6 {[%clk
0:45:04]} 18. Qf2 {[%clk 1:09:27]} 18... Nxd4 {[%clk 0:44:26]} 19. Bxd4 {[%clk
1:09:50]} 19... Bh6 {[%clk 0:44:43]} 20. f4 {[%clk 1:05:30]} 20... Ne6 {[%clk
0:41:57]} 21. Be3 {[%clk 1:05:28]} 21... Bg7 {[%clk 0:37:52]} 22. Qh4 {[%clk
0:58:45]} 22... Bf6 {[%clk 0:33:20]} 23. Qg3 {[%clk 0:57:18]} 23... Ng7 {[%clk
0:31:15]} 24. Nd5 {[%clk 0:53:24]} 24... Bb2 {[%clk 0:25:34]} 25. Rc2 {[%clk
0:53:09]} 25... Nh5 {[%clk 0:23:54]} 26. Qh4 {[%clk 0:52:45]} 26... Bf6 {[%clk
0:23:59]} 27. Nxf6+ {[%clk 0:51:53]} 27... Nxf6 {[%clk 0:24:19]} 28. Rd4 {[%clk
0:38:24]} 28... Qg4 {[%clk 0:23:39]} 29. Qf2 {[%clk 0:37:18]} 29... Nxe4 {[%clk
0:18:36]} 30. Qf1 {[%clk 0:35:25]} 30... Nf6 {[%clk 0:17:52]} 31. h3 {[%clk
0:33:33]} 31... Qd7 {[%clk 0:16:13]} 32. Rf2 {[%clk 0:32:03]} 32... Nh5 {[%clk
0:15:59]} 33. g4 {[%clk 0:23:52]} 33... Ng7 {[%clk 0:14:30]} 34. f5 {[%clk
0:21:36]} 34... Rf8 {[%clk 0:14:02]} 35. Bh6 {[%clk 0:17:21]} 35... Qc7 {[%clk
0:12:23]} 36. Rd5 {[%clk 0:16:15]} 36... Qd7 {[%clk 0:09:16]} 37. f6 {[%clk
0:07:26]} 37... exf6 {[%clk 0:08:33]} 38. Rxf6 {[%clk 0:07:48]} 38... Rc6 {[%clk
0:08:32]} 39. Qa1 {[%clk 0:07:28]} 39... Qc7 {[%clk 0:05:57]} 40. Kf1 {[%clk
0:02:46]} 40... a6 {[%clk 0:04:06]} 41. Rfxd6 {[%clk 0:02:27]} 41... f5 {[%clk
0:01:11]} 42. Rd7 {[%clk 0:01:32]} 42... fxg4+ {[%clk 0:01:23]} 43. Kg2 {[%clk
0:01:46]} 43... gxh3+ {[%clk 0:00:37]} 44. Kh1 {[%clk 0:02:11]} 1-0

[Variant "Standard"]
[Site "Europe Echecs"]

[Event "Championnat du monde jeunes U10"]
[Date "2024.11.19"]
[White "Akramov, Khusan"]
[Black "Gomez Silva, Maximiliano"]
[WhiteElo "1782"]
[BlackElo "1643"]
[Round "5.7"]
[Result "1/2-1/2"]
[TimeControl "5400+30"]

1. e4 {[%clk 1:30:41]} 1... c6 {[%clk 1:29:47]} 2. Nf3 {[%clk 1:31:04]} 2... d5
{[%clk 1:29:26]} 3. Nc3 {[%clk 1:31:30]} 3... dxe4 {[%clk 1:28:14]} 4. Nxe4
{[%clk 1:31:46]} 4... Nd7 {[%clk 1:27:35]} 5. Qe2 {[%clk 1:31:30]} 5... e6
{[%clk 1:26:34]} 6. d4 {[%clk 1:31:43]} 6... Ngf6 {[%clk 1:24:27]} 7. Bf4 {[%clk
1:30:01]} 7... Nb6 {[%clk 1:15:50]} 8. O-O-O {[%clk 1:28:41]} 8... Be7 {[%clk
1:11:11]} 9. Ne5 {[%clk 1:22:49]} 9... Nbd5 {[%clk 1:03:59]} 10. Bd2 {[%clk
1:22:14]} 10... O-O {[%clk 1:02:23]} 11. Qf3 {[%clk 1:20:41]} 11... a5 {[%clk
0:57:30]} 12. Bd3 {[%clk 1:18:45]} 12... Nb4 {[%clk 0:52:09]} 13. Nxf6+ {[%clk
1:11:02]} 13... Bxf6 {[%clk 0:52:08]} 14. Qe4 {[%clk 1:10:11]} 14... Nxd3+
{[%clk 0:49:31]} 15. Qxd3 {[%clk 1:10:34]} 15... Qd5 {[%clk 0:42:31]} 16. c4
{[%clk 1:07:49]} 16... Qd6 {[%clk 0:35:18]} 17. Bf4 {[%clk 1:07:13]} 17... a4
{[%clk 0:28:43]} 18. Qd2 {[%clk 1:06:21]} 18... Qe7 {[%clk 0:22:38]} 19. c5
{[%clk 1:04:32]} 19... Rd8 {[%clk 0:19:17]} 20. Qe3 {[%clk 1:03:54]} 20... Rd5
{[%clk 0:16:39]} 21. Nc4 {[%clk 1:03:34]} 21... Ra6 {[%clk 0:10:23]} 22. Nb6
{[%clk 1:01:39]} 22... Bxd4 {[%clk 0:05:45]} 23. Rxd4 {[%clk 1:01:43]} 23...
Qxc5+ {[%clk 0:06:03]} 24. Rc4 {[%clk 1:02:01]} 24... Qxb6 {[%clk 0:06:10]} 25.
Qxb6 {[%clk 1:02:01]} 25... Rxb6 {[%clk 0:06:38]} 26. Rxa4 {[%clk 1:02:25]}
26... Ra6 {[%clk 0:06:08]} 27. Rxa6 {[%clk 1:02:37]} 27... bxa6 {[%clk 0:06:37]}
28. Rd1 {[%clk 1:02:24]} 28... Kf8 {[%clk 0:05:34]} 29. Rxd5 {[%clk 1:01:54]}
29... cxd5 {[%clk 0:05:02]} 30. Kd2 {[%clk 1:02:15]} 30... Ke7 {[%clk 0:05:21]}
31. Kd3 {[%clk 1:02:33]} 31... f6 {[%clk 0:05:23]} 32. Bd2 {[%clk 1:02:41]}
32... e5 33. f4 e4+ 34. Kd4 1/2-1/2

[Variant "Standard"]
[Site "Europe Echecs"]

[Event "Championnat du monde jeunes U10"]
[Date "2024.11.19"]
[White "Hochman, Gur"]
[Black "Zilincan, Tomas"]
[WhiteElo "1626"]
[BlackElo "1778"]
[Round "5.8"]
[Result "1-0"]
[TimeControl "5400+30"]

1. e4 {[%clk 1:30:59]} 1... e6 2. d3 {[%clk 1:31:17]} 2... c5 {[%clk 1:31:21]}
3. Nd2 {[%clk 1:31:37]} 3... Nc6 {[%clk 1:31:48]} 4. Ngf3 {[%clk 1:31:55]} 4...
g6 {[%clk 1:32:08]} 5. g3 {[%clk 1:32:14]} 5... Bg7 {[%clk 1:32:26]} 6. Bg2
{[%clk 1:32:32]} 6... Nge7 {[%clk 1:32:48]} 7. O-O {[%clk 1:32:47]} 7... d5
{[%clk 1:33:13]} 8. c3 {[%clk 1:28:48]} 8... O-O {[%clk 1:33:10]} 9. Qe2 {[%clk
1:22:03]} 9... b6 {[%clk 1:30:20]} 10. Rd1 {[%clk 1:17:56]} 10... Re8 {[%clk
1:30:33]} 11. Nf1 {[%clk 1:16:24]} 11... Bb7 {[%clk 1:30:00]} 12. e5 {[%clk
1:14:35]} 12... Qc7 {[%clk 1:29:47]} 13. d4 {[%clk 1:12:54]} 13... Rac8 {[%clk
1:28:16]} 14. Bg5 {[%clk 1:10:39]} 14... h6 {[%clk 1:25:20]} 15. Bf6 {[%clk
1:09:04]} 15... Nf5 {[%clk 1:22:50]} 16. g4 {[%clk 1:08:05]} 16... Nfe7 {[%clk
1:23:09]} 17. Qd2 {[%clk 1:02:53]} 17... cxd4 {[%clk 1:23:23]} 18. cxd4 {[%clk
1:03:03]} 18... Na5 {[%clk 1:23:34]} 19. b3 {[%clk 0:53:41]} 19... Qd7 {[%clk
1:22:52]} 20. Qf4 {[%clk 0:49:07]} 20... Rc7 {[%clk 1:18:16]} 21. Rd3 {[%clk
0:48:10]} 21... Ba6 {[%clk 1:18:20]} 22. Bxg7 {[%clk 0:47:11]} 22... Kxg7 {[%clk
1:18:42]} 23. Qf6+ {[%clk 0:47:21]} 23... Kg8 {[%clk 1:18:50]} 24. Ng5 {[%clk
0:46:30]} 24... hxg5 {[%clk 1:18:26]} 25. Rf3 {[%clk 0:21:09]} 25... Nec6 {[%clk
1:17:48]} 26. Rh3 {[%clk 0:20:38]} 1-0

[Variant "Standard"]
[Site "Europe Echecs"]